Cogmind - Beta 9.3 *** ADVENTURER MODE // 2019.12.18 @ 18:48:59 // Winter2019/RPGLIKE Player: Helkin Result: Destroyed by G-47 Trooper with Particle Gun Performance ------------- Evolutions (2) 1000 Regions Visited (4) 800 Robots Destroyed (81) 405 Value Destroyed (2129) 2129 Prototype IDs (9) 180 Alien Tech Used (0) 0 Bonus (0) 0 TOTAL SCORE: 4514 Bonus ------- None Cogmind --------- Core Integrity 0/750 Matter 330/450 Energy 284/290 System Corruption 0% Temperature Cool (18) Movement Treading (145) Location -8/Storage Parts ------- > --- POWER (1) -------- Light Deuterium Engine > --- PROPULSION (3) --- Advanced Treads Advanced Treads Advanced Treads > --- UTILITY (3) ------ Structural Scanner Improved Terrain Scanner Improved ECM Suite > --- WEAPON (2) ------- Assault Cannon Assault Cannon > --- INVENTORY (1) ---- Great Maul Peak State ------------ > --- POWER ------------ Light Deuterium Engine > --- PROPULSION ------- Advanced Treads Advanced Treads Advanced Treads > --- UTILITY ---------- Structural Scanner Improved Terrain Scanner Improved ECM Suite > --- WEAPON ----------- Assault Cannon Assault Cannon > --- INVENTORY -------- Great Maul [Rating: 24] Favorites ----------- Power Light Deuterium Engine Engine Light Deuterium Engine Propulsion Advanced Treads Treads Advanced Treads Leg Aluminum Leg Hover Unit Backup Propulsion I Utility Improved Terrain Scanner Device Improved Terrain Scanner Processor Seismic Analyzer Weapon Assault Cannon Energy Gun Spread Laser Energy Cannon Particle Cannon Ballistic Gun Light Assault Rifle Ballistic Cannon Assault Cannon Impact Weapon Great Maul Special Melee Weapon Datajack Build | -11 -10 -9 -8 -8 ------- Run | Scr Mat Mat Mat Sto Slots Evolved 5 | 3 . 2 . . Power . | . . . . . Propulsion 2 | 1 . 1 . . Utility 2 | 1 . 1 . . Weapon 1 | 1 . . . . Parts Attached 47 | 7 10 25 3 2 Power 6 | 1 1 4 . . Engine 6 | 1 1 4 . . Core . | . . . . . Reactor . | . . . . . Propulsion 17 | 2 4 10 1 . Treads 11 | 2 . 8 1 . Leg 6 | . 4 2 . . Wheel . | . . . . . Hover . | . . . . . Flight . | . . . . . Utility 6 | 2 2 2 . . Device 5 | 1 2 2 . . Storage . | . . . . . Processor 1 | 1 . . . . Hackware . | . . . . . Protection . | . . . . . Artifact . | . . . . . Weapon 18 | 2 3 9 2 2 Energy Gun 3 | . . 2 1 . Energy Cannon 3 | . 3 . . . Ballistic Gun 2 | 2 . . . . Ballistic Cannon 8 | . . 6 1 1 Launcher . | . . . . . Special Weapon . | . . . . . Impact Weapon 1 | . . . . 1 Slashing Weapon . | . . . . . Piercing Weapon . | . . . . . Special Melee Weapon 1 | . . 1 . . Unidentified Prototypes 1 | . . . 1 . Parts Lost . | . . . . . Power . | . . . . . Propulsion . | . . . . . Utility . | . . . . . Weapon . | . . . . . Highest Loss Streak . | . . . . . Average Slot Usage (%) 97 | . 98 96 100 100 Engine 12 | . 14 11 11 11 Treads 22 | . 8 27 33 33 Leg 7 | . 18 1 . . Device 28 | . 21 31 33 33 Processor 2 | . 6 . . . Energy Gun 1 | . . 2 . . Energy Cannon 9 | . 26 1 . . Ballistic Cannon 13 | . . 19 22 17 Naked Turns . | . . . . . Heaviest Build 20 | 9 20 20 19 19 Greatest Support 71 | 40 40 69 71 27 Greatest Overweight (x) 1 | . 1 . . . Average Overweight (x) . | . . . . . Largest Inventory Capacity 1 | . . 1 1 1 Average Capacity . | . . . 1 1 Most Carried 1 | . . 1 1 1 Average Carried . | . . . 1 1 Final Capacity 1 | . . 1 1 1 Final Carried 1 | . . 1 1 1 Class Distribution -------------------- 47% | Hacker-Skirmisher 28% | Skirmisher 13% | Mutant 4% | Scavenger-Mutant Dominant Class ---------------- Skirmisher | -10/Materials Hacker-Skirmisher | -9/Materials Hacker-Skirmisher | -8/Materials Hacker-Skirmisher | -8/Storage Resources | -11 -10 -9 -8 -8 ----------- Run | Scr Mat Mat Mat Sto Matter Collected 1581 | 302 100 1109 70 . Remotely . | . . . . . Salvage Created 1940 | 145 211 1395 88 101 Parts 145 | 6 31 101 5 2 Haulers Intercepted 1 | . . 1 . . Recyclers Shooed 1 | . . 1 . . Parts Field Recycled . | . . . . . Retrieved Matter . | . . . . . Parts Self-Destructed . | . . . . . Prevented . | . . . . . Kills | -11 -10 -9 -8 -8 ------- Run | Scr Mat Mat Mat Sto Combat Hostiles Destroyed 58 | . 13 40 3 2 Melee 1 | . . 1 . . Guns 1 | . . 1 . . Cannons 55 | . 13 38 3 1 Classes Destroyed 13 | 2 3 8 . . Worker 4 | . . 4 . . Builder 2 | . . 1 . 1 Tunneler 3 | 3 . . . . Hauler 1 | . . 1 . . Recycler 4 | 1 . 3 . . Mechanic 1 | . . 1 . . Operator 1 | . . 1 . . Watcher 7 | . 2 5 . . Swarmer 13 | . 6 7 . . Grunt 32 | . 7 22 2 1 Brawler 1 | . . 1 . . Duelist 1 | . . 1 . . Sentry 11 | . . 9 1 1 Best Kill Streak 12 | 2 3 12 3 2 Combat Bots Only 7 | . 3 7 3 1 Max Kills in Single Turn 2 | 1 1 2 1 1 Gunslinging . | . . . . . Exploded . | . . . . . Melee 1 | . . 1 . . Uniques/NPCs Destroyed . | . . . . . Combat | -11 -10 -9 -8 -8 -------- Run | Scr Mat Mat Mat Sto Damage Taken 1786 | . 204 642 80 860 Core 1404 | . 156 509 62 677 Absorbed by Shields . | . . . . . Redirected to Core 1180 | . 135 391 62 592 Core Remaining (%) 99 | 100 100 97 . . Volleys Fired 134 | 8 27 84 7 8 Largest 2 | 2 2 2 2 2 Hottest 136 | 40 136 133 88 88 Shots Fired 264 | 16 54 166 14 14 Gun 26 | 16 . 10 . . Cannon 238 | . 54 156 14 14 Launcher . | . . . . . Special . | . . . . . Kinetic 198 | 16 . 154 14 14 Thermal 66 | . 54 12 . . Explosive . | . . . . . Electromagnetic . | . . . . . Robot Hit Streak 30 | 5 23 30 26 11 Robot Miss Streak 4 | 1 4 3 1 1 Penetration Max . | . . . . . Secondary Targets . | . . . . . Shots Hit Robots 205 | 10 34 129 12 20 Core Hits 110 | 6 16 80 5 3 Critical Hits 6 | . 1 4 . 1 Critical Kills 2 | . . 1 . 1 Critical Parts Destroyed 4 | . 1 3 . . Melee Attacks 10 | . . 3 . 7 Impact 7 | . . . . 7 Slashing . | . . . . . Piercing . | . . . . . Sneak Attacks 3 | . . 2 . 1 Combat Hostiles . | . . . . . Follow-up Attacks . | . . . . . Damage Inflicted 4803 | 105 724 3158 256 560 Guns 269 | 105 . 164 . . Cannons 4271 | . 724 2986 256 305 Explosions . | . . . . . Melee 255 | . . . . 255 Ramming 8 | . . 8 . . Kinetic 3630 | 105 . 2964 256 305 Thermal 910 | . 724 186 . . Explosive . | . . . . . Electromagnetic . | . . . . . Impact 255 | . . . . 255 Slashing . | . . . . . Piercing . | . . . . . Highest Corruption . | . . . . . Average Corruption . | . . . . . Corruption Purged . | . . . . . Overload Shots . | . . . . . Overflow Damage 265 | . 3 152 . 110 Projectiles 183 | . 3 152 . 28 Explosions . | . . . . . Melee 82 | . . . . 82 Knockbacks 37 | . . 26 2 9 Impact 2 | . . . . 2 Kinetic 31 | . . 24 2 5 Secondary 4 | . . 2 . 2 Self-Inflicted Damage . | . . . . . Shots . | . . . . . Rammed 3 | . . 3 . . Targets Rammed 4 | . . 4 . . Kicked . | . . . . . Crushed 1 | . . 1 . . Highest Temperature 96 | . 96 12 . . Average Temperature 28 | . 30 5 . . Received Heat Transfer 996 | . 78 261 54 603 Siege Activations . | . . . . . Robots Corrupted . | . . . . . Combat Hostiles . | . . . . . Parts Fried 3 | . . . . 3 Impact Corruptions 4 | . . . . 4 Robots Melted . | . . . . . Combat Hostiles . | . . . . . Parts Melted 5 | . 5 . . . Heat Transferred 1537 | . 1295 242 . . Parts Sabotaged . | . . . . . Parts Stolen . | . . . . . Parts Stripped . | . . . . . Power Chain Reactions . | . . . . . Missiles Intercepted . | . . . . . Alert | -11 -10 -9 -8 -8 ------- Run | Scr Mat Mat Mat Sto Peak Influence 368 | 20 316 368 126 97 Average Influence 135 | 8 128 161 50 70 Maximum Alert Level 1 | . 1 1 . . Low Security (%) 77 | 100 71 74 100 100 Level 1 22 | . 28 25 . . Level 2 . | . . . . . Level 3 . | . . . . . Level 4 . | . . . . . Level 5 . | . . . . . High Security . | . . . . . Max Security . | . . . . . Squads Dispatched 10 | . 3 6 1 . Investigation 7 | . 3 3 1 . Extermination . | . . . . . Reinforcement 3 | . . 3 . . Assault . | . . . . . Garrison . | . . . . . Intercept . | . . . . . Construction Impeded . | . . . . . Haulers Reinforced . | . . . . . Stealth | -11 -10 -9 -8 -8 --------- Run | Scr Mat Mat Mat Sto Distress Signals 4 | . . 3 . 1 Communications Jammed . | . . . . . Distress Signals . | . . . . . Times Spotted 88 | . 19 59 3 7 Peak Tracking Total 9 | . 5 9 2 7 Tactical Retreats 5 | . 1 2 . 2 Traps | -11 -10 -9 -8 -8 ------- Run | Scr Mat Mat Mat Sto Traps Triggered 5 | . 2 3 . . Indirectly . | . . . . . Trap Hack Attempts . | . . . . . Triggered . | . . . . . Disarmed 6 | . 6 . . . Reprogrammed 12 | . 12 . . . Reused . | . . . . . Traps Extracted . | . . . . . Installed . | . . . . . Triggered . | . . . . . Machines | -11 -10 -9 -8 -8 ---------- Run | Scr Mat Mat Mat Sto Machines Disabled 5 | . 1 4 . . Max in Single Turn 1 | . 1 1 . . Machines Sabotaged . | . . . . . Garrisons Compromised . | . . . . . Overloaded Fab Kills . | . . . . . Fab Network Shutdowns . | . . . . . Hacking | -11 -10 -9 -8 -8 --------- Run | Scr Mat Mat Mat Sto Machines Accessed 26 | . 10 12 4 . Terminals 17 | . 7 6 4 . Fabricators . | . . . . . Repair Stations 3 | . 1 2 . . Recycling Units 4 | . 2 2 . . Scanalyzers 2 | . . 2 . . Garrison Access . | . . . . . Total Hacks 104 | . 37 53 14 . Successful 80 | . 28 42 10 . Failed 24 | . 9 11 4 . Catastrophic 2 | . . 2 . . Database Lockouts . | . . . . . Manual . | . . . . . Terminals 68 | . 27 27 14 . Fabricators . | . . . . . Repair Stations 19 | . 5 14 . . Recycling Units 9 | . 5 4 . . Scanalyzers 8 | . . 8 . . Garrison Access . | . . . . . Terminal Hacks 46 | . 19 17 10 . Robot Analysis 2 | . . 2 . . Prototype ID Bank 6 | . 3 2 1 . Branch Access Points 2 | . 1 . 1 . Emergency Access Points 3 | . . 2 1 . Machine Index 2 | . 1 . 1 . Repair Station Index 1 | . 1 . . . Alert Level 4 | . . 1 3 . Unreport Threat 3 | . . 3 . . Locate Traps 4 | . 4 . . . Disarm Traps 1 | . 1 . . . Reprogram Traps 4 | . 4 . . . Dispatch Records 6 | . 2 2 2 . Maintenance Status 1 | . . 1 . . Security Status 1 | . 1 . . . Investigation Status 1 | . 1 . . . Reinforcement Status 1 | . . 1 . . Recall Investigation 1 | . . . 1 . Registered Components 1 | . . 1 . . Registered Prototypes 1 | . . 1 . . Zone Layout 1 | . . 1 . . Fabricator Hacks . | . . . . . Repair Station Hacks 17 | . 4 13 . . Scan Component 8 | . 2 6 . . Repair 8 | . 2 6 . . Refit 1 | . . 1 . . Recycling Unit Hacks 9 | . 5 4 . . Process 2 | . 1 1 . . Report Inventory 5 | . 3 2 . . Retrieve Matter 1 | . . 1 . . Retrieve Components 1 | . 1 . . . Scanalyzer 8 | . . 8 . . Insert Component 4 | . . 4 . . Analyze 4 | . . 4 . . Garrison Access Hacks . | . . . . . Unauthorized Hacks . | . . . . . Terminals . | . . . . . Fabricators . | . . . . . Repair Stations . | . . . . . Recycling Units . | . . . . . Scanalyzers . | . . . . . Garrison Access . | . . . . . Data Cores Recovered . | . . . . . Used . | . . . . . Hacking Detections 21 | . 9 8 4 . Full Trace Events 7 | . 2 4 1 . Feedback Events . | . . . . . Feedback Blocked . | . . . . . Robot Schematics Acquired . | . . . . . Robots Built . | . . . . . Matter . | . . . . . Time . | . . . . . Total Robot Build Rating . | . . . . . Part Schematics Acquired 4 | . . 4 . . Parts Built . | . . . . . Matter . | . . . . . Time . | . . . . . Total Part Build Rating . | . . . . . Parts Repaired 8 | . 2 6 . . Time 268 | . 64 204 . . Parts Recycled . | . . . . . Recycled Matter 394 | . 181 213 . . Retrieved Matter 248 | . . 248 . . Retrieved Components 9 | . 9 . . . Parts Scanalyzed 4 | . . 4 . . Part Schematics Acquired 4 | . . 4 . . Parts Damaged 1 | . . 1 . . Bothacking | -11 -10 -9 -8 -8 ------------ Run | Scr Mat Mat Mat Sto Used RIF Installer . | . . . . . Robots Hacked 1 | . . 1 . . Non-combat 1 | . . 1 . . Combat . | . . . . . Robot Hacks Applied 1 | . . 1 . . no_distress 1 | . . 1 . . Relay Couplers Released . | . . . . . Robots Rewired . | . . . . . Allies Hacked . | . . . . . Hacks Repelled . | . . . . . Allies | -11 -10 -9 -8 -8 -------- Run | Scr Mat Mat Mat Sto Total Allies . | . . . . . Largest Group . | . . . . . Highest-Rated Group . | . . . . . Highest-Rated Ally . | . . . . . Total Orders . | . . . . . Ally Attacks . | . . . . . Total Damage . | . . . . . Kills . | . . . . . Allies Corrupted . | . . . . . Allies Melted . | . . . . . Intel | -11 -10 -9 -8 -8 ------- Run | Scr Mat Mat Mat Sto Robot Analysis Total 2 | . . 2 . . Derelict Logs Recovered . | . . . . . Drone Launches . | . . . . . Drone Recoveries . | . . . . . Exploration | -11 -10 -9 -8 -8 ------------- Run | Scr Mat Mat Mat Sto Turns Passed 3645 | 137 1155 2012 263 78 Spaces Moved 1919 | 64 716 958 158 23 Core 1 | 1 . . . . Treads 1274 | 63 121 909 158 23 Legs 644 | . 595 49 . . Wheels . | . . . . . Hover . | . . . . . Flight . | . . . . . Fastest Speed 50 | 50 120 120 145 145 Average Speed 140 | 158 126 147 149 145 Slowest Speed 160 | 160 160 160 150 145 Overloaded Moves . | . . . . . Propulsion Burnouts . | . . . . . Robots Hopped . | . . . . . Cave-ins Triggered . | . . . . . Exploration Rate (%) 44 | 7 96 92 21 6 Regions Visited 4 Branch Regions 1 Pre-discovered Areas . | . . . . . Known Exits Taken 1 | . . . 1 . Unknown Exits Taken 3 | 1 1 1 . . Scrap Searched . | . . . . . Spaces Dug . | . . . . . Terrain Destroyed 22 | . . 19 1 2 Melee . | . . . . . Projectile 22 | . . 19 1 2 AOE . | . . . . . Actions | -11 -10 -9 -8 -8 --------- Run | Scr Mat Mat Mat Sto Total 2587 | 82 907 1386 171 41 Wait 405 | 4 138 261 1 1 Move 1915 | 63 715 957 157 23 Hop . | . . . . . Pick Up 8 | . . 8 . . Fast Attach 40 | 7 10 20 3 . Attach 3 | . . 3 . . Detach 1 | . . 1 . . Swap 4 | . . 2 . 2 Drop 31 | . 8 20 3 . Fire 134 | 8 27 84 7 8 Melee 10 | . . 3 . 7 Ram . | . . . . . Kick . | . . . . . Crush 4 | . . 4 . . Escape Stasis . | . . . . . Rewire . | . . . . . Trap . | . . . . . Miscellaneous 32 | . 9 23 . . Route ------- -11/Scrapyard -10/Materials (discovered 4 exits: *Mat x3 / *Min) -9/Materials (discovered 5 exits: *Mat x3 / [*Min x2]) -8/Materials (discovered 2 exits: *Sto x2) -8/Storage History --------- Turn | Location | Event 1 | -11/Scrapyard | Upgraded with Propulsion slot (x1) 1 | -11/Scrapyard | Upgraded with Utility slot (x1) 1 | -11/Scrapyard | Upgraded with Weapon slot (x1) 11 | -11/Scrapyard | Discovered new exit (range 15) 138 | -11/Scrapyard | Entered Materials 318 | -10/Materials | Build established: Mutant 420 | -10/Materials | Repaired Particle Cannon 454 | -10/Materials | Repaired Imp. Terrain Scanner 565 | -10/Materials | Discovered new exit (range 9) 594 | -10/Materials | Reached level 2 777 | -10/Materials | Discovered new exit (range 13) 864 | -10/Materials | Identified exit to Mines 949 | -10/Materials | Build established: Skirmisher 1095 | -10/Materials | Discovered new exit (range 16) 1270 | -10/Materials | Discovered new exit (range 6) 1293 | -10/Materials | Entered another Materials area 1295 | -9/Materials | Reached level 3 1339 | -9/Materials | Repaired Aluminum Leg 1367 | -9/Materials | Repaired Aluminum Leg 1415 | -9/Materials | Reached level 4 1694 | -9/Materials | Destroyed 7 combat bots 1773 | -9/Materials | Reached level 5 1776 | -9/Materials | Upgraded with Propulsion slot (x1) 1776 | -9/Materials | Upgraded with Utility slot (x1) 1803 | -9/Materials | Discovered new exit (range 11) 2084 | -9/Materials | Build established: Hacker-Skirmisher 2162 | -9/Materials | Reached level 6 2184 | -9/Materials | Discovered new exit (range 16) 2275 | -9/Materials | Discovered new exit (range 6) 2343 | -9/Materials | Repaired Assault Cannon 2382 | -9/Materials | Repaired Adv. Treads 2422 | -9/Materials | Repaired Assault Cannon 2461 | -9/Materials | Repaired Lgt. Deuterium Engine 2776 | -9/Materials | Discovered new exit (range 12) 2801 | -9/Materials | Reached level 7 3281 | -9/Materials | Discovered new exit (range 16) 3305 | -9/Materials | Entered another Materials area 3307 | -8/Materials | Reached level 8 3448 | -8/Materials | Identified exit to Storage 3568 | -8/Materials | Entered Storage 3570 | -8/Storage | Reached level 9 3616 | -8/Storage | Core integrity fell below 50% 3634 | -8/Storage | Core integrity fell below 20% 3646 | -8/Storage | Destroyed by G-47 Trooper with Particle Gun Last Messages --------------- 03612_ Y-45 Defender system corrupted by crushing effect. 03613_ Y-45 Defender system terminally corrupted. 03613_ Heat Sink fried. 03615_ U-05 Engineer builds a Wall. 03621_ Sneak attack on U-05 Engineer. 03621_ Destroyed Wheel. 03621_ Destroyed Welding Torch. 03621_ Destroyed Wheel. 03621_ U-05 Engineer system corrupted by crushing effect. 03621_ U-05 Engineer knocked back. 03622_ U-05 Engineer system terminally corrupted. 03622_ Structural Scanner fried. 03622_ Lgt. Ion Engine fried. 03631_ G-47 Trooper knocked back. 03637_ Destroyed Particle Gun. 03637_ G-47 Trooper knocked back. 03640_ Destroyed Particle Gun. 03646_ G-50 Soldier knocked back. 03646_ G-50 Soldier suffers critical hit. 03646_ G-50 Soldier destroyed. Map ----- +----------------------------------------------------+ | ????????????????????????????????????????????????? | | ????????????????????????????????????????????????? | | ????????????????????????????????????????????????? | | ????????????????????????????????????????????????? | | ????????????????????????????????????????????????? | | ????????????????????????????????????????????????? | | ????????????????????????????????????????????????? | | ??????????????????????????? ??????????????????? | | ??????????????????????"? # ???????????????? | | ???????????????????????" ? "?????????????? | | ???????????????????""""" ?? ? ???????????? | | ?????????????????# #! ? ??????????? | | ???????#?#??#???###########% ??????????? | | ???????##?????### # ? ?? ????????? | | ????#?#?????#?### # ? ? ????????? | | ??#?????????##### """ """ # ? ?????????? | | ?????#?#??##?###? """ """ + ?? ? ? ? ??????? | | ????????#???##### "?" ""? # ? ?#??????? | | ?#?????????###### # ########+???#?????? | | ??##???##?####### ? # ^ ######## #?????? | | ???#????###?##### # #######T ??#?????? | | ??#?###???############## ##= ########"??##?????? | | ?????????##############?###%[ ###### ??????? | | ?#?#?????#?###########?#### ###### ???????? | | ????#??#################### ###### ##????? | | ???????#?# @ % ###### ? #?????? | | ???????### % ##?##########?????? | | ?????###?# gg ########?###??????? | | ?????##??##################;###########?#?#?????? | | ?????###??######################?#########??????? | | #???#???###?#####?##?######?#############???????? | | ?????####?###?######?####################???????? | | ??????#???#?###################?####?#?#????????? | | | | | | | | | | | | | | | | | | | | | | | | | | | | | | | | | | | +----------------------------------------------------+ Best States ------------- Heat Dissipation 55 Energy Generation 19 Energy Capacity 365 Matter Stores 450 Matter Capacity 450 Sight Range 17 Robot Scan Range 6 Terrain Scan Range 16 Terrain Scan Density 310 ECM Strength 2 Resistance: KI 30 Resistance: TH 20 Resistance: EX 20 Resistance: EM 20 Resistance: I 20 Resistance: S 20 Resistance: P 20 Evasion (%) 40 Recoil Reduction 3 Offensive Hacking 25 Item Schematics ----------------- Great Maul | -9/Materials | Scanalyzed Assault Cannon | -9/Materials | Scanalyzed Adv. Treads | -9/Materials | Scanalyzed Lgt. Deuterium Engine | -9/Materials | Scanalyzed Robot Schematics ------------------ None Fabricated ------------ Nothing Alien Tech Used ----------------- None Achievements -------------- GoHome() Omniscient Cartographer Challenges ------------ None RPGLIKE | -11 -10 -9 -8 -8 --------- Run | Scr Mat Mat Mat Sto Levels Raised 8 | . 1 5 1 1 XP Earned 17047 | 4000 1775 8047 1925 1300 XP Spent 11490 | 4000 1500 5990 . . Upgrades 43 | 18 7 18 . . Propulsion Slot 2 | 1 . 1 . . Utility Slot 2 | 1 . 1 . . Weapon Slot 1 | 1 . . . . Core Integrity 3 | 3 . . . . Heat Dissipation 5 | 4 . 1 . . Energy Generation 1 | 1 . . . . Energy Storage 3 | 2 . 1 . . Matter Storage 3 | . . 3 . . Mass Support 1 | . 1 . . . Inventory Capacity 1 | . . 1 . . Sight Range 1 | . . 1 . . Sensor Range 3 | . 1 2 . . Terrain Scan Density 3 | . 1 2 . . Ranged Accuracy 4 | . 2 2 . . Melee Accuracy 2 | 2 . . . . Hack Attack % 3 | . 1 2 . . KI Resistance % 2 | 1 . 1 . . KI Damage % 2 | 2 . . . . TH Damage % 1 | . 1 . . . Protomatter Created 841 | . 273 471 47 50 Integrity Restored 649 | . 156 493 . . Core 649 | . 156 493 . . Protomatter Decayed 571 | . 219 305 47 . Game ------ Seed PotentialDefenseDerivative Manual? 0 Play Time 00:57:43 Cumulative 18.9 hours Start 2019.12.18 @ 17:47:55 End 2019.12.18 @ 18:48:59 Sessions 1 Manual Loads 0 Difficulty Adventurer Special Mode Winter2019/RPGLIKE Game No. 18 Rogue 11 Adventurer 6 Explorer 1 Win Type - Total 0 Types 0/0/0/0/0/0/0 Lore% 12 Gallery% 26 Achievement% 18 Wizard Run 0 Options --------- ASCII 0 Keyboard 0 Movement Mouse Keybinds 0 Fullscreen 1 Font 18/X11Bold Map View 76x50 Tactical HUD 1 Map Filters NONE Filters NONE Steam 1 RUN: 9dc3656c-f689-4351-9cd4-bf69f76ca87f